bitfinex-derivatives/quotes_SOLF0:USTF0_20251221
["timestamp","ask_amount","ask_price","bid_price","bid_amount"]
[1766332944983,90.18380232,125.13,125.06,34.11350656]
[1766332945283,90.18380232,125.13,125.07,34.06]
[1766332945793,0.05273984,125.11,125.09,0.05623681]
[1766332946182,1.77114216,125.11,125.07,34.06]
[1766332946982,0.05273984,125.11,125.07,34.06]
[1766332947183,0.05273984,125.11,125.08,0.06073376]
[1766332951395,0.05273984,125.11,125.08,34.12073376]
[1766332951987,0.00273984,125.11,125.08,34.12073376]
[1766332953297,47.2,125.14,125.08,34.12073376]
[1766332953484,47.2,125.14,125.09,35.66]
[1766332954197,0.0524482,125.13,125.09,35.66]
[1766332963111,0.0524482,125.13,125.09,151.66]
[1766332963516,0.0524482,125.13,125.1,35.47]
[1766332971427,0.0024482,125.13,125.1,35.47]
[1766332971617,34.76,125.17,125.11,35.47]
[1766332972621,0.05220024,125.15,125.13,0.0593158]
[1766332977024,0.05220024,125.15,125.08,7.1975]
[1766332977224,34.81220024,125.15,125.09,47.2]
[1766332977833,34.81220024,125.15,125.08,7.1975]
[1766332978030,34.81220024,125.15,125.1,0.05695184]
[1766332978230,36.47899709,125.14,125.1,0.05695184]
[1766332979929,0.05220024,125.15,125.1,7.14695184]
[1766332981732,0.05220024,125.15,125.1,14.34345184]
[1766332982546,0.05220024,125.15,125.11,7.18]
[1766332982731,0.05220024,125.15,125.11,123.18]
[1766332985434,0.05220024,125.15,125.11,130.3758]
[1766332988335,0.05220024,125.15,125.11,123.18]
[1766332992645,0.05220024,125.15,125.11,7.18]
[1766332998145,0.00220024,125.15,125.11,7.18]
[1766332998644,0.00220024,125.15,125.12,7.76]
[1766332999043,0.00220024,125.15,125.1,0.05695184]
[1766332999044,33.50220024,125.15,125.1,0.05695184]
[1766332999245,36.18426794,125.13,125.06,7.8]
[1766332999442,36.18426794,125.13,125.07,7.85]
[1766332999644,33.5,125.13,125.07,7.85]
[1766333000340,33.5,125.13,125.06,116.0]
[1766333000341,0.0039497,125.11,125.09,7.88095881]
[1766333002748,2.68426794,125.15,125.1,7.92]
[1766333002954,36.18426794,125.17,125.1,7.92]
[1766333003448,36.18426794,125.17,125.11,7.92]
[1766333003646,47.2,125.18,125.12,7.92]
[1766333003953,0.05055529,125.16,125.14,0.05493338]
[1766333013453,35.03055529,125.16,125.11,119.0]
[1766333014555,35.03055529,125.16,125.12,0.05726125]
[1766333016053,35.03055529,125.16,125.12,8.44726125]
[1766333016054,0.05055529,125.16,125.12,8.44726125]
[1766333022163,0.00055529,125.16,125.12,8.44726125]
[1766333024062,0.00055529,125.16,125.12,174.62726125]
[1766333024263,0.00055529,125.16,125.13,8.49]
[1766333028481,0.00055529,125.16,125.13,15.6848]
[1766333028983,0.00055529,125.16,125.14,8.57]
[1766333034189,0.00055529,125.16,125.14,127.57]
[1766333035688,34.92055529,125.16,125.12,47.23726125]
[1766333035888,0.00055529,125.16,125.12,47.23726125]
[1766333036075,0.00055529,125.16,125.12,82.74726125]
[1766333042793,0.00055529,125.16,125.12,89.94266125]
[1766333045296,0.00055529,125.16,125.13,7.1949]
[1766333045795,0.00055529,125.16,125.13,44.8749]
[1766333050899,2.208e-05,125.17,125.14,7.1943]
[1766333051898,0.05310916,125.17,125.14,7.1943]
[1766333058606,0.05308708,125.17,125.14,7.1943]
[1766333060308,0.05308708,125.17,125.13,37.68]
[1766333065613,0.00308708,125.17,125.13,44.8747]
[1766333065812,0.00308708,125.17,125.13,37.68]
[1766333066511,0.00308708,125.17,125.15,35.09]
[1766333066714,0.00308708,125.17,125.15,35.14220632]
[1766333075216,0.00308708,125.17,125.15,0.05220632]
[1766333096431,0.00308708,125.17,125.15,36.19220632]
[1766333098428,8.90752008,125.21,125.15,36.19220632]
[1766333099528,0.05734542,125.19,125.15,36.19220632]
[1766333100934,1.7741655,125.19,125.15,36.19220632]
[1766333102730,1.71682008,125.17,125.13,36.14]
[1766333103733,0.05357027,125.16,125.14,0.05396089]
[1766333103934,0.05357027,125.16,125.13,36.14]
[1766333104935,0.05357027,125.16,125.13,36.19889194]
[1766333107536,0.00357027,125.16,125.13,36.19889194]
[1766333115945,7.19707027,125.16,125.13,0.05889194]
[1766333116240,7.19707027,125.16,125.11,36.56]
[1766333117140,42.83707027,125.16,125.12,0.058909]
[1766333120750,0.00357027,125.16,125.12,36.618909]
[1766333126354,7.19697027,125.16,125.12,36.618909]
[1766333142260,39.25344894,125.15,125.08,75.72]
[1766333142451,39.25344894,125.15,125.07,7.35751169]
[1766333142656,47.2,125.14,125.07,7.35751169]
[1766333142962,47.2,125.14,125.06,7.35751169]
[1766333143359,0.00385433,125.11,125.09,0.05523526]
[1766333144355,0.00385433,125.11,125.1,35.7]
[1766333146663,54.3948,125.14,125.1,35.7]
[1766333147564,0.05346574,125.13,125.1,35.7]
[1766333151267,36.62346574,125.13,125.09,0.05523526]
[1766333151973,2.68525308,125.12,125.06,7.35751169]
[1766333152270,2.68525308,125.12,125.04,14.55731169]
[1766333152969,0.054512,125.09,125.07,0.05772914]
[1766333153169,0.004512,125.09,125.07,0.05772914]
[1766333154070,0.004512,125.09,125.08,1.06]
[1766333155462,7.1955,125.13,125.08,1.06]
[1766333156266,43.7655,125.13,125.08,1.06]
[1766333156579,0.06059386,125.12,125.08,1.06]
[1766333167881,2.74584694,125.12,125.07,0.05772914]
[1766333168974,2.74584694,125.12,125.07,7.25602914]
[1766333169278,0.06059386,125.12,125.07,7.25602914]
[1766333169883,0.06059386,125.12,125.08,0.85]
[1766333170077,0.06059386,125.12,125.09,0.85]
[1766333170281,0.00059386,125.12,125.09,0.85]
[1766333172683,0.00059386,125.12,125.09,8.0471]
[1766333173785,0.00059386,125.12,125.06,187.702]
[1766333173984,0.00059386,125.12,125.06,211.29459539]
[1766333174387,0.00059386,125.12,125.06,187.702]
[1766333174581,0.00059386,125.12,125.09,7.1971]
[1766333174777,0.00059386,125.12,125.09,7.25669255]
[1766333175386,0.00059386,125.12,125.09,0.05959255]
[1766333175777,0.00059386,125.12,125.09,0.28959255]
[1766333176392,0.00059386,125.12,125.1,0.27]
[1766333189898,1.71800549,125.11,125.09,0.05959255]
[1766333190402,1.71800549,125.11,125.08,75.72]
[1766333190603,1.71800549,125.11,125.07,54.3982]
[1766333191303,1.71800549,125.11,125.08,0.05990654]
[1766333191503,1.71800549,125.11,125.07,54.3982]
[1766333192002,1.71800549,125.11,125.07,55.7882]
[1766333192401,5.49e-06,125.11,125.07,55.7882]
[1766333192704,5.49e-06,125.11,125.08,0.03606365]
[1766333192906,5.49e-06,125.11,125.07,55.7882]
[1766333194105,0.00059386,125.12,125.08,8.6677]
[1766333194305,5.49e-06,125.11,125.08,8.6677]
[1766333198711,9.935e-05,125.12,125.08,8.6677]
[1766333201712,9.935e-05,125.12,125.09,1.74]
[1766333202709,44.4429,125.17,125.1,0.05]
[1766333202910,1.71800549,125.16,125.1,0.05]
[1766333203117,1.71800549,125.18,125.11,0.07]
[1766333203517,1.71800549,125.18,125.12,0.07]
[1766333203718,0.00067536,125.16,125.12,0.07]
[1766333204609,0.00067536,125.16,125.12,7.2653]
[1766333204917,0.00067536,125.16,125.13,0.11012173]
[1766333207320,0.00067536,125.16,125.14,7.3142]
[1766333207619,0.00067536,125.16,125.15,0.12]
[1766333208422,1.71800549,125.21,125.15,0.12]
[1766333208623,38.96800549,125.21,125.15,0.12]
[1766333209322,0.05229346,125.19,125.17,0.05950592]
[1766333212715,0.00229346,125.19,125.17,0.05950592]
[1766333214421,1.72029895,125.19,125.14,0.23]
[1766333215426,1.72029895,125.19,125.15,0.0517633]
[1766333216221,0.00229346,125.19,125.15,0.3217633]
[1766333223238,0.00229346,125.19,125.15,7.5154633]
[1766333223532,38.97029895,125.19,125.15,0.0517633]
[1766333226239,0.00229346,125.19,125.15,0.5917633]
[1766333226837,0.00229346,125.19,125.15,7.7852633]
[1766333227028,0.00229346,125.19,125.16,0.55]
[1766333228741,0.00229346,125.19,125.16,7.7431]
[1766333230641,0.00229346,125.19,125.17,7.7824]
[1766333230938,0.00229346,125.19,125.17,7.1924]
[1766333232438,0.00229346,125.19,125.15,7.8553633]
[1766333232641,0.00229346,125.19,125.16,0.62]
[1766333235237,39.42,125.22,125.17,0.66]
[1766333235540,47.18,125.23,125.17,0.66]
[1766333236140,86.6,125.23,125.17,7.8525]
[1766333236338,0.05990691,125.21,125.19,0.05329762]
[1766333236537,39.42,125.23,125.19,0.05329762]
[1766333237642,0.05346944,125.22,125.19,0.05329762]
[1766333237944,39.47346944,125.22,125.19,0.00329762]
[1766333240946,39.47346944,125.22,125.15,37.0]
[1766333241146,39.47346944,125.22,125.14,55.0941]
[1766333241348,39.42,125.22,125.15,0.72]
[1766333241546,39.42,125.22,125.15,7.9137]
[1766333241746,39.42,125.22,125.15,0.72]
[1766333241944,39.47554886,125.2,125.17,0.0552152]
[1766333247254,0.05554886,125.2,125.17,0.0552152]
[1766333248645,0.05554886,125.2,125.17,7.2477152]
[1766333249853,39.27,125.24,125.19,7.1913]
[1766333250953,0.06130642,125.23,125.2,0.0562598]
[1766333253858,0.06130642,125.23,125.2,7.2470598]
[1766333254956,6.78390642,125.24,125.21,7.1901]
[1766333255156,6.42e-06,125.24,125.21,7.1901]
[1766333255958,6.42e-06,125.24,125.17,111.8842]
[1766333256364,6.42e-06,125.24,125.16,74.47]
[1766333256667,6.42e-06,125.24,125.16,44.6632]
[1766333257057,0.06078394,125.21,125.19,0.0540031]
[1766333257259,0.05822803,125.21,125.19,0.0540031]
[1766333259167,37.55822803,125.21,125.19,0.0040031]
[1766333260771,37.55822803,125.21,125.16,7.1931]
[1766333261875,37.55822803,125.21,125.17,0.05093413]
[1766333276397,0.05822803,125.21,125.17,44.71343413]
[1766333278507,37.55822803,125.21,125.17,7.24343413]
[1766333278999,2.68149823,125.25,125.17,44.71343413]
[1766333279202,2.68149823,125.25,125.18,44.6618]
[1766333279394,49.86149823,125.27,125.18,37.47]
[1766333279905,49.86149823,125.27,125.19,44.6614]
[1766333280098,0.05259074,125.24,125.22,0.05594578]
[1766333282497,9.86922023,125.29,125.23,37.47]
[1766333282498,0.001422,125.29,125.23,37.47]
[1766333282693,0.001422,125.29,125.24,37.47]
[1766333282894,0.001422,125.29,125.25,7.1879]
[1766333283296,0.001422,125.29,125.25,44.6579]
[1766333283496,0.05758746,125.28,125.26,0.05372137]
[1766333283809,37.55758746,125.28,125.26,0.00372137]
[1766333283999,37.55758746,125.28,125.21,37.47]
[1766333284195,37.55758746,125.28,125.22,37.47]
[1766333284907,40.23908569,125.28,125.24,0.05941481]
[1766333286096,40.23908569,125.28,125.2,7.1907]
[1766333286303,40.18149823,125.28,125.2,7.1907]
[1766333287000,0.05542179,125.25,125.23,0.06018026]
[1766333289312,0.05542179,125.25,125.23,0.00018026]
[1766333289811,38.42542179,125.25,125.19,7.1914]
[1766333290210,38.42542179,125.25,125.2,7.1905]
[1766333290717,26.28542179,125.25,125.19,151.5982]
[1766333291010,2.68149823,125.28,125.22,7.1896]
[1766333291410,2.68149823,125.28,125.2,39.73]
[1766333291709,0.05559122,125.25,125.23,0.00131881]
[1766333291905,0.05559122,125.25,125.2,39.73]
[1766333292304,2.68149823,125.34,125.25,39.73]
[1766333292608,2.68149823,125.34,125.24,39.73]
[1766333292609,2.68149823,125.32,125.24,39.73]
[1766333292805,2.68149823,125.34,125.24,7.1884]
[1766333292806,2.68149823,125.3,125.24,7.1884]
[1766333293006,38.37,125.29,125.24,7.1884]
[1766333293407,0.05265038,125.28,125.25,0.05717679]
[1766333295000,38.42265038,125.28,125.25,0.05717679]
[1766333295206,0.05265038,125.28,125.23,151.5617]
[1766333295406,0.05265038,125.28,125.23,39.73]
[1766333296216,0.05265038,125.28,125.23,46.9191]
[1766333299302,38.42265038,125.28,125.21,39.73]
[1766333299609,1.7142842,125.27,125.21,39.73]
[1766333299806,0.05175484,125.25,125.21,39.73]
[1766333301207,0.05175484,125.25,125.21,86.89]
[1766333302015,0.05175484,125.25,125.19,47.16]
[1766333302203,0.05175484,125.25,125.19,86.89]
[1766333303108,0.05175484,125.25,125.2,39.73]
[1766333304716,38.42175484,125.25,125.19,47.16]
[1766333305016,1.7142842,125.24,125.19,47.16]
[1766333305220,40.0842842,125.24,125.19,47.16]
[1766333305415,40.0842842,125.24,125.18,39.73]
[1766333305614,0.05244919,125.22,125.18,86.89]
[1766333308119,0.05244919,125.22,125.18,39.73]
[1766333308420,1.76673339,125.22,125.18,86.89]
[1766333308810,1.76836773,125.22,125.18,86.89]
[1766333311220,0.05244919,125.22,125.18,86.89]
[1766333311617,47.27371854,125.26,125.19,39.73]
[1766333311823,40.08591854,125.24,125.18,47.16]
[1766333312626,0.05710702,125.22,125.2,0.05124734]
[1766333313530,1.77302556,125.22,125.17,39.73]
[1766333319427,47.1811,125.2,125.13,7.34204384]
[1766333319640,0.05341365,125.18,125.13,38.99]
[1766333319932,1.71591854,125.21,125.14,38.99]
[1766333320126,1.71591854,125.21,125.15,7.1937]
[1766333320329,1.71591854,125.19,125.12,38.99]
[1766333320538,41.70591854,125.19,125.12,86.15]
[1766333320725,41.70591854,125.19,125.13,38.99]
[1766333321033,0.05604515,125.17,125.14,0.05819428]
[1766333323932,1.77196369,125.17,125.14,0.05819428]
[1766333324632,41.76196369,125.17,125.11,93.3459]
[1766333324827,41.70591854,125.15,125.09,38.99]
[1766333325635,0.05838569,125.13,125.09,38.99]
[1766333326836,0.05838569,125.13,125.09,46.1871]
[1766333332238,0.05838569,125.13,125.09,38.99]
[1766333338546,1.71591854,125.12,125.06,38.99]
[1766333338742,39.99,125.13,125.06,38.99]
[1766333339654,39.99,125.13,125.07,46.1882]
[1766333339948,0.05168895,125.11,125.09,0.05975556]
[1766333340637,1.71591854,125.14,125.09,39.04975556]
[1766333341845,54.3929,125.17,125.09,39.04975556]
[1766333341846,0.00276996,125.13,125.09,46.24655556]
[1766333342041,0.00276996,125.13,125.09,46.1868]
[1766333342748,0.00276996,125.13,125.11,38.99]
[1766333342951,87.19,125.17,125.11,38.99]
[1766333343549,47.2,125.17,125.11,38.99]
[1766333343742,1.71591854,125.18,125.12,38.99]
[1766333343942,0.05789564,125.16,125.14,0.06061824]
[1766333347249,41.70591854,125.19,125.14,39.39061824]
[1766333348355,0.05496664,125.18,125.14,39.39061824]
[1766333355961,0.00496664,125.18,125.14,39.39061824]
[1766333378280,0.00496664,125.18,125.14,46.58491824]
[1766333392091,0.00496664,125.18,125.15,46.0836]
[1766333393687,0.00496664,125.18,125.15,7.1936]
[1766333397093,6.664e-05,125.19,125.16,7.193]
[1766333397990,0.05316972,125.19,125.16,7.193]
[1766333400095,0.05310308,125.19,125.16,7.193]
[1766333403300,0.05310308,125.19,125.14,46.14461824]
[1766333404502,0.05310308,125.19,125.14,38.95061824]
[1766333407294,40.57310308,125.19,125.14,0.06061824]
[1766333407494,43.20195441,125.18,125.14,0.06061824]
[1766333408084,43.20195441,125.18,125.12,39.6]
[1766333409196,0.05893304,125.16,125.14,0.05575129]
[1766333412098,0.05893304,125.16,125.12,39.6]
[1766333413098,0.05893304,125.16,125.13,0.05260148]
[1766333416293,0.05893304,125.16,125.13,39.65260148]
[1766333439622,1.71724734,125.15,125.13,39.65260148]
[1766333441523,1.71724734,125.15,125.11,41.06]
[1766333442029,40.72724734,125.13,125.06,7.36805781]
[1766333442325,1.71724734,125.11,125.05,7.36805781]
[1766333442623,0.00014789,125.09,125.07,0.05966378]
[1766333444117,0.00014789,125.09,125.08,41.06]
[1766333448826,0.00014789,125.09,125.07,0.05966378]
[1766333449217,0.00014789,125.09,125.07,41.11966378]
[1766333461228,0.00014789,125.09,125.07,0.05966378]
[1766333461427,40.72739523,125.09,125.07,0.05966378]
[1766333461730,1.71739523,125.09,125.05,16.4181]
[1766333462130,7.198,125.08,125.05,16.4181]
[1766333462726,7.198,125.08,125.05,16.47870303]
[1766333471945,7.198,125.08,125.05,0.06060303]
[1766333478449,38.93014789,125.09,125.05,0.06060303]
[1766333478654,0.00014789,125.09,125.05,39.34060303]
[1766333487670,38.05,125.07,125.01,38.32]
[1766333487968,2.68719157,125.06,125.01,38.32]
[1766333488669,0.06090484,125.05,125.02,0.05041563]
[1766333489468,45.31070484,125.05,125.02,0.05041563]
[1766333490869,0.06090484,125.05,125.02,38.37041563]
[1766333493165,0.00090484,125.05,125.02,38.37041563]
[1766333495665,0.00090484,125.05,125.02,0.05041563]
[1766333507879,0.00090484,125.05,125.01,39.37]
[1766333508482,2.68809641,125.05,125.01,39.37]
[1766333508680,2.68809641,125.05,125.01,27.2699]
[1766333508681,9.88819641,125.05,125.01,27.2699]
[1766333508882,50.21819641,125.05,125.02,0.05501559]
[1766333509073,50.21729157,125.05,124.97,37.0]
[1766333509269,50.21729157,125.05,124.96,98.80568914]
[1766333509582,50.2191873,125.05,124.97,7.36138914]
[1766333509772,7.2003,125.04,124.97,7.36138914]
[1766333509973,0.05626922,125.02,124.97,7.36138914]
[1766333510481,0.05626922,125.02,124.95,54.60138914]
[1766333510782,0.00115489,125.0,124.96,39.37]
[1766333511892,0.00115489,125.0,124.98,39.37]
[1766333518400,40.33115489,125.0,124.97,0.05264675]
[1766333518594,0.00115489,125.0,124.97,39.42264675]
[1766333521698,43.0190873,125.04,124.97,39.42264675]
[1766333521898,43.0190873,125.04,124.97,39.37]
[1766333522697,0.0546735,125.02,124.99,0.0561393]
[1766333523603,0.0546735,125.02,124.99,39.4261393]
[1766333524094,40.3846735,125.02,124.99,0.0561393]
[1766333526805,40.3846735,125.02,124.96,39.37]
[1766333527508,43.0737608,125.02,124.96,39.37]
[1766333528604,44.2390873,125.0,124.94,40.13]
[1766333528904,0.06058253,124.98,124.94,40.13]
[1766333531305,2.6890873,125.02,124.94,40.13]
[1766333531901,41.55,125.03,124.94,47.3358]
[1766333532297,0.06080149,125.0,124.97,40.13058253]
[1766333543534,43.27148185,125.03,124.97,40.13058253]
[1766333543820,1.72148185,125.06,124.97,40.13058253]
[1766333544020,1.72148185,125.06,124.99,40.01]
[1766333544422,0.05988198,125.04,125.01,40.06554663]
[1766333544823,0.05988198,125.04,125.01,0.05554663]
[1766333553738,40.96988198,125.04,125.01,0.05554663]
[1766333554436,0.05988198,125.04,125.01,0.05554663]
[1766333558637,39.72988198,125.04,125.01,0.05554663]
[1766333562253,0.05988198,125.04,125.01,0.05554663]
[1766333562434,48.58939518,125.07,125.02,40.02]
[1766333563343,0.05603469,125.06,125.02,40.02]
[1766333564238,39.72603469,125.06,125.02,40.02]
[1766333564430,39.72603469,125.06,125.01,0.05554663]
[1766333576349,46.92513469,125.06,125.01,0.05554663]
[1766333581453,39.67,125.04,125.01,0.05554663]
[1766333582856,39.67,125.04,124.98,39.96]
[1766333583865,0.05546225,125.02,125.0,0.06098862]
[1766333586257,39.20546225,125.02,125.0,0.00098862]
[1766333586664,39.20546225,125.02,124.96,40.1]
[1766333587751,39.20546225,125.02,124.98,0.05577493]
[1766333594570,39.20546225,125.02,124.95,7.2052]
[1766333595270,39.20546225,125.02,124.96,7.2045]
[1766333595572,39.20389369,125.0,124.96,7.2045]
[1766333595879,0.05389369,125.0,124.97,47.3538]
[1766333596077,0.00389369,125.0,124.97,47.3538]
[1766333597071,0.00389369,125.0,124.97,47.41275582]
[1766333598272,0.00389369,125.0,124.98,7.2034]
[1766333599273,0.00389369,125.0,124.97,40.20895582]
[1766333605177,39.15389369,125.0,124.97,0.05895582]
[1766333605378,39.15389369,125.0,124.95,40.1]
[1766333608983,39.15389369,125.0,124.93,38.42]
[1766333609276,0.06112858,124.98,124.93,38.42]
[1766333610681,39.22112858,124.98,124.91,75.42]
[1766333610982,39.22112858,124.98,124.91,38.42]
[1766333612987,39.16,124.96,124.88,45.79342857]
[1766333613285,0.05116511,124.93,124.88,45.79342857]
[1766333614173,46.364,124.98,124.89,38.42]
[1766333614374,46.364,124.98,124.91,38.42]
[1766333615287,0.05710451,124.96,124.93,0.05116511]
[1766333627691,0.05710451,124.96,124.93,38.29116511]
[1766333627997,39.98,124.99,124.93,38.29116511]
[1766333628895,0.05121293,124.97,124.93,38.29116511]
[1766333638905,40.03121293,124.97,124.93,0.05116511]
[1766333641304,47.23551293,124.97,124.93,0.05116511]
[1766333644307,40.03121293,124.97,124.93,0.05116511]
[1766333657014,40.03121293,124.97,124.9,166.79255556]
[1766333657406,40.03121293,124.97,124.9,208.72255556]
[1766333657607,40.03121293,124.97,124.92,7.207]
[1766333658009,40.02300332,124.96,124.93,0.05710451]
[1766333660918,40.02300332,124.96,124.9,7.40605556]
[1766333661113,40.02300332,124.93,124.87,86.34616993]
[1766333661315,40.02300332,124.93,124.87,41.93]
[1766333661910,38.3,124.93,124.87,41.93]
[1766333662115,0.05853185,124.91,124.87,41.93]
[1766333667330,0.05853185,124.91,124.88,88.64]
[1766333669934,0.05853185,124.91,124.86,41.36]
[1766333669935,40.54223637,124.91,124.86,41.36]
[1766333670127,40.54223637,124.91,124.87,47.28]
[1766333674841,40.54223637,124.91,124.86,41.36]
[1766333675044,40.54223637,124.91,124.86,88.64]
[1766333675942,40.54223637,124.91,124.86,41.36]
[1766333676152,40.54223637,124.91,124.86,88.64]
[1766333677345,38.81853185,124.91,124.86,88.64]
[1766333682156,38.81853185,124.91,124.86,41.36]
[1766333685658,40.93370452,124.9,124.84,85.41]
[1766333685953,0.05200101,124.88,124.84,85.41]
[1766333686456,39.26200101,124.88,124.84,85.41]
[1766333687247,39.26200101,124.88,124.84,38.13]
[1766333688155,40.98570553,124.88,124.81,38.13]
[1766333688360,0.05200101,124.88,124.82,38.13]
[1766333689560,0.05200101,124.88,124.82,45.3426]
[1766333690453,0.05200101,124.88,124.83,85.41]
[1766333691563,39.26200101,124.88,124.83,85.41]
[1766333692355,39.26200101,124.88,124.83,38.13]
[1766333692953,40.98570553,124.88,124.81,85.43]
[1766333693165,0.05257506,124.86,124.81,85.43]
[1766333694254,40.98627958,124.86,124.81,38.13]
[1766333695855,40.98627958,124.86,124.8,47.3]
[1766333696660,1.72370452,124.84,124.8,47.3]
[1766333696861,0.05953155,124.83,124.79,38.13]
[1766333697069,0.05953155,124.83,124.76,7.2159]
[1766333697070,39.26953155,124.83,124.78,85.43]
[1766333698561,0.05953155,124.83,124.79,38.13]
[1766333699760,1.78323607,124.83,124.79,38.13]
[1766333699963,1.78323607,124.83,124.78,54.515]
[1766333700270,1.78323607,124.83,124.78,45.345]
[1766333700769,0.05953155,124.83,124.78,45.345]
[1766333701361,1.78323607,124.83,124.78,38.13]
[1766333702674,0.05953155,124.83,124.78,38.13]
[1766333703079,0.05953155,124.83,124.78,85.43]
[1766333704981,0.05953155,124.83,124.78,38.13]
[1766333706469,39.21,124.86,124.8,41.13]
[1766333706678,1.72370452,124.87,124.8,41.13]
[1766333706868,40.93370452,124.87,124.8,41.13]
[1766333707574,0.05741387,124.85,124.82,0.05314323]
[1766333708576,0.05741387,124.85,124.82,41.18314323]
[1766333713782,39.21,124.9,124.83,41.13]
[1766333714081,1.72555128,124.89,124.83,41.13]
[1766333714377,40.93555128,124.89,124.83,41.13]
[1766333714681,0.05801365,124.87,124.85,0.05651094]
[1766333721486,7.2075,124.92,124.85,41.18651094]
[1766333721691,39.21,124.91,124.85,41.18651094]
[1766333722190,7.2075,124.92,124.85,41.18651094]
[1766333722384,93.7161,124.94,124.85,48.39741094]
[1766333722581,0.05695652,124.91,124.88,0.06156212]
[1766333731892,41.41695652,124.91,124.88,0.00156212]
[1766333733701,48.62475652,124.91,124.88,0.00156212]
[1766333735607,0.05695652,124.91,124.88,0.00156212]
[1766333740212,39.14695652,124.91,124.88,0.00156212]
[1766333745816,0.05695652,124.91,124.88,42.07156212]
[1766333746010,0.05695652,124.91,124.88,0.00156212]
[1766333748616,39.14695652,124.91,124.88,0.00156212]
[1766333750108,2.69445312,124.89,124.82,79.07]
[1766333750314,41.78445312,124.89,124.82,42.07]
[1766333751217,0.06005905,124.87,124.84,0.05146468]
[1766333756115,0.06005905,124.87,124.85,42.07]
[1766333756116,5.905e-05,124.87,124.85,42.07]
[1766333760023,5.905e-05,124.87,124.84,0.05146468]
[1766333771629,5.905e-05,124.87,124.84,40.50146468]
[1766333772327,5.905e-05,124.87,124.84,47.71306468]
[1766333772634,5.905e-05,124.87,124.84,40.50146468]
[1766333773624,5.905e-05,124.87,124.85,47.6609]
[1766333774033,5.905e-05,124.87,124.86,40.45]
[1766333777433,5.905e-05,124.87,124.86,87.75]
[1766333777623,5.905e-05,124.87,124.86,40.45]
[1766333778133,5.905e-05,124.87,124.85,54.5109]
[1766333779736,5.905e-05,124.87,124.84,87.80146468]
[1766333781539,5.905e-05,124.87,124.84,0.05146468]
[1766333781744,1.72507138,124.87,124.84,0.05146468]
[1766333782742,5.905e-05,124.87,124.84,0.05146468]
[1766333786851,1.72507138,124.87,124.84,0.05146468]
[1766333787442,42.19507138,124.87,124.84,0.05146468]
[1766333787642,42.19507138,124.87,124.84,0.00146468]
[1766333788744,40.47005905,124.87,124.8,37.0]
[1766333788945,42.19501233,124.85,124.79,41.45]
[1766333789544,42.19640292,124.84,124.78,88.75]
[1766333789842,0.05206782,124.82,124.8,0.05402416]
[1766333790645,0.00206782,124.82,124.8,0.05402416]
[1766333792238,42.19640292,124.86,124.8,41.50402416]
[1766333792444,42.19640292,124.88,124.8,41.50402416]
[1766333792649,42.19640292,124.88,124.82,48.6625]
[1766333792952,42.19640292,124.9,124.83,41.45]
[1766333793154,0.05694713,124.88,124.85,0.05762697]
[1766333806660,42.34694713,124.88,124.85,0.05762697]
[1766333813865,0.05694713,124.88,124.85,0.05762697]
[1766333820174,0.05694713,124.88,124.85,7.26862697]
[1766333821384,0.05694713,124.88,124.85,0.05762697]
[1766333827385,89.5,124.91,124.85,38.23762697]
[1766333827886,42.2,124.91,124.85,38.23762697]
[1766333828081,42.2,124.91,124.86,85.48]
[1766333828386,0.06136239,124.9,124.86,85.48]
[1766333828983,0.06136239,124.9,124.87,38.18]
[1766333832585,43.9238202,124.89,124.85,0.05762697]
[1766333842094,42.2,124.89,124.85,0.05762697]
[1766333849400,42.2,124.89,124.85,7.26862697]
[1766333850597,5.366e-05,124.89,124.86,7.2104]
[1766333850804,7.183e-05,124.9,124.86,7.2104]
[1766333851301,2.69535578,124.94,124.86,153.2213]
[1766333851695,0.0580093,124.91,124.89,0.05429052]
[1766333852814,2.69535578,124.94,124.89,0.05429052]
[1766333853703,0.05657682,124.93,124.89,0.05429052]
[1766333853908,0.05657682,124.93,124.9,7.208]
[1766333854107,2.69535578,124.95,124.89,0.05429052]
[1766333854405,2.69535578,124.95,124.88,41.06]
[1766333854606,2.69535578,124.95,124.88,48.2689]
[1766333854800,40.67,124.94,124.88,48.2689]